bitfinex-derivatives/quotes_SOLF0:USTF0_20250903
["timestamp","ask_amount","ask_price","bid_price","bid_amount"]
[1756884292564,7.66,208.65,208.56,10.20878245]
[1756884293355,7.66,208.65,208.56,7.68]
[1756884293556,7.66,208.65,208.52,2.52878245]
[1756884293764,7.66,208.63,208.52,7.68]
[1756884300559,7.66,208.6,208.48,7.68]
[1756884301165,7.66,208.6,208.5,7.68]
[1756884303266,2.52878245,208.58,208.5,7.68]
[1756884303467,7.66,208.57,208.5,7.68]
[1756884303663,7.66,208.57,208.45,7.68]
[1756884303868,7.66,208.57,208.46,2.52878245]
[1756884304062,7.66,208.57,208.47,7.68]
[1756884304269,2.52878245,208.56,208.47,7.68]
[1756884304467,7.66,208.55,208.47,7.68]
[1756884308673,7.66,208.59,208.49,2.52878245]
[1756884308972,7.66,208.59,208.5,7.68]
[1756884309173,7.66,208.63,208.53,7.68]
[1756884309374,7.66,208.63,208.56,7.68]
[1756884310973,7.66,208.66,208.58,2.52878245]
[1756884312174,7.66,208.66,208.58,10.21878245]
[1756884313570,7.3,208.66,208.58,7.69]
[1756884313771,7.3,208.66,208.54,7.69]
[1756884313977,12.64863592,208.64,208.52,2.52878245]
[1756884314573,2.52878245,208.55,208.48,4.02200455]
[1756884314776,2.52878245,208.55,208.3,134.4057]
[1756884314777,7.3,208.48,208.36,4.02200455]
[1756884314976,2.52878245,208.45,208.35,7.69]
[1756884315178,7.3,208.44,208.35,7.69]
[1756884315772,0.03359559,208.42,208.36,2.52878245]
[1756884316480,0.03359559,208.42,208.37,4.84189188]
[1756884316681,0.03359559,208.42,208.39,7.69]
[1756884316883,0.03359559,208.42,208.4,4.84189188]
[1756884317082,0.03359559,208.42,208.41,4.84189188]
[1756884318982,0.03359559,208.42,208.41,12.53189188]
[1756884319583,0.03359559,208.42,208.39,7.69]
[1756884319978,3.78297301,208.41,208.36,7.69]
[1756884320179,3.78297301,208.4,208.39,7.69]
[1756884320983,0.03359559,208.42,208.39,8.17]
[1756884321178,0.03359559,208.42,208.41,2.52878245]
[1756884321483,0.03359559,208.42,208.41,10.21878245]
[1756884321883,7.3,208.52,208.42,7.69]
[1756884322083,7.3,208.52,208.44,2.52878245]
[1756884322983,7.3,208.52,208.46,0.03532001]
[1756884327386,7.3,208.52,208.36,4.319]
[1756884327387,2.52878245,208.48,208.3,7.69]
[1756884327583,12.64863592,208.51,208.35,7.69]
[1756884327781,2.52878245,208.46,208.35,7.69]
[1756884327976,2.52878245,208.47,208.35,7.69]
[1756884328181,7.3,208.48,208.35,7.69]
[1756884328676,0.03106579,208.44,208.35,7.69]
[1756884329987,7.3,208.43,208.35,7.69]
[1756884330188,9.82878245,208.43,208.35,7.69]
[1756884330388,9.82878245,208.43,208.3,7.69]
[1756884330983,0.031278,208.39,208.3,7.69]
[1756884333080,3.72193584,208.38,208.3,7.69]
[1756884333285,0.031278,208.39,208.3,7.69]
[1756884333489,3.72115584,208.38,208.3,7.69]
[1756884333690,0.031278,208.39,208.3,7.69]
[1756884333991,3.72115584,208.38,208.3,7.69]
[1756884334189,0.031278,208.39,208.3,7.69]
[1756884334389,3.72040688,208.38,208.3,7.69]
[1756884334589,0.031278,208.39,208.3,7.69]
[1756884334791,3.72039818,208.38,208.3,7.69]
[1756884334985,0.031278,208.39,208.3,7.69]
[1756884335187,3.72040132,208.38,208.3,7.69]
[1756884335380,0.031278,208.39,208.3,7.69]
[1756884335682,3.71986592,208.38,208.3,7.69]
[1756884335888,0.031278,208.39,208.3,7.69]
[1756884336089,3.71986592,208.38,208.3,7.69]
[1756884336290,3.71958322,208.37,208.3,7.69]
[1756884336487,0.031278,208.39,208.3,7.69]
[1756884336682,3.71959192,208.38,208.3,7.69]
[1756884336888,3.71959192,208.37,208.3,7.69]
[1756884337084,0.031278,208.39,208.3,7.69]
[1756884337283,3.71959819,208.38,208.3,7.69]
[1756884337490,3.71959819,208.37,208.34,1.62211692]
[1756884337692,0.031278,208.39,208.34,9.31211692]
[1756884337892,3.71959314,208.38,208.35,7.69]
[1756884338187,3.71959314,208.38,208.34,1.62211692]
[1756884338188,0.031278,208.39,208.34,1.62211692]
[1756884338388,3.71992102,208.38,208.35,7.69]
[1756884338589,0.031278,208.39,208.34,1.62211692]
[1756884338789,3.72019711,208.38,208.34,1.62211692]
[1756884338988,0.031278,208.39,208.34,1.62211692]
[1756884339188,3.72075435,208.38,208.35,7.69]
[1756884339393,0.031278,208.39,208.35,7.69]
[1756884339593,3.7209195,208.38,208.35,7.69]
[1756884339794,0.031278,208.39,208.35,7.69]
[1756884339986,3.7222667,208.38,208.34,1.62211692]
[1756884340190,3.72205424,208.37,208.35,7.69]
[1756884340394,0.031278,208.39,208.35,7.69]
[1756884340590,3.72227993,208.38,208.35,7.69]
[1756884340895,3.72227993,208.37,208.33,7.69]
[1756884341102,3.72227993,208.36,208.33,7.69]
[1756884341285,7.3,208.39,208.32,1.62211692]
[1756884341490,5.34405469,208.38,208.3,1.62211692]
[1756884341690,3.72193777,208.37,208.3,1.62211692]
[1756884341893,3.72193777,208.36,208.3,1.62211692]
[1756884342093,3.72193777,208.35,208.31,7.75]
[1756884342293,1.65359572,208.38,208.31,7.75]
[1756884342494,7.59,208.36,208.3,1.62211692]
[1756884342696,11.31133735,208.35,208.3,1.62211692]
[1756884342896,3.72133735,208.34,208.31,7.75]
[1756884343992,7.59,208.33,208.26,1.62211692]
[1756884344189,5.34345427,208.32,208.24,7.75]
[1756884344395,3.72133735,208.31,208.24,9.37211692]
[1756884344594,3.72133735,208.3,208.24,9.37211692]
[1756884344890,3.72133735,208.29,208.25,7.75]
[1756884345097,3.72133735,208.28,208.25,7.75]
[1756884345395,1.62211692,208.32,208.25,7.75]
[1756884345694,3.71735166,208.31,208.25,7.75]
[1756884345894,11.30735166,208.3,208.25,7.75]
[1756884346086,3.71735166,208.29,208.25,7.75]
[1756884346689,11.30735166,208.29,208.25,7.75]
[1756884346893,3.71735166,208.28,208.25,7.75]
[1756884347096,7.59,208.29,208.25,7.75]
[1756884347297,3.71696481,208.28,208.25,7.75]
[1756884347598,7.59,208.29,208.25,7.75]
[1756884349791,3.71695036,208.28,208.25,7.75]
[1756884349994,7.59,208.32,208.24,9.37211692]
[1756884350190,7.59,208.32,208.27,7.75]
[1756884350401,7.59,208.36,208.3,1.62211692]
[1756884354109,7.59,208.36,208.32,1.62211692]
[1756884354409,7.59,208.36,208.32,9.37211692]
[1756884355010,5.34863592,208.39,208.32,1.62211692]
[1756884355207,12.93863592,208.4,208.34,1.62211692]
[1756884355510,7.59,208.4,208.34,1.62211692]
[1756884356214,12.93863592,208.4,208.34,1.62211692]
[1756884356413,12.93863592,208.4,208.31,7.75]
[1756884356611,7.59,208.4,208.34,1.62211692]
[1756884356808,7.59,208.4,208.36,1.62211692]
[1756884357114,7.59,208.41,208.31,7.75]
[1756884357412,5.34863592,208.41,208.36,1.62211692]
[1756884357613,12.93863592,208.41,208.31,7.75]
[1756884357814,12.93863592,208.41,208.35,1.62211692]
[1756884358315,7.59,208.39,208.35,1.62211692]
[1756884358713,7.59,208.39,208.34,1.62211692]
[1756884359014,7.59,208.39,208.34,9.37211692]
[1756884359515,12.93863592,208.39,208.34,9.37211692]
[1756884359813,7.59,208.38,208.33,1.62211692]
[1756884360015,5.34863592,208.38,208.33,1.62211692]
[1756884360210,7.59,208.37,208.33,1.62211692]
[1756884360606,5.34863592,208.38,208.35,1.62211692]
[1756884360806,12.93863592,208.42,208.37,9.37211692]
[1756884361211,5.34863592,208.45,208.41,1.62211692]
[1756884361412,7.59,208.44,208.41,1.62211692]
[1756884361813,12.93863592,208.45,208.29,7.75]
[1756884362013,7.59,208.43,208.3,130.2]
[1756884362313,12.93863592,208.43,208.37,1.62211692]
[1756884363211,7.59,208.43,208.37,1.62211692]
[1756884364118,12.93863592,208.43,208.37,1.62211692]
[1756884364316,7.59,208.43,208.37,1.62211692]
[1756884365018,7.59,208.43,208.39,1.62211692]
[1756884365222,7.59,208.43,208.39,9.37211692]
[1756884365518,5.34863592,208.45,208.41,1.62211692]
[1756884365713,7.59,208.44,208.41,1.62211692]
[1756884367415,9.21211692,208.48,208.41,1.62211692]
[1756884368220,14.56075284,208.48,208.41,1.62211692]
[1756884368427,9.21211692,208.48,208.41,1.62211692]
[1756884369020,14.56075284,208.48,208.41,1.62211692]
[1756884371023,5.34863592,208.47,208.41,1.62211692]
[1756884371623,7.47,208.45,208.38,1.62211692]
[1756884371813,7.47,208.43,208.36,1.62211692]
[1756884372020,7.47,208.41,208.27,295.78]
[1756884372218,7.47,208.41,208.34,1.62211692]
[1756884373322,7.47,208.41,208.36,1.62211692]
[1756884373519,7.47,208.41,208.36,9.38211692]
[1756884374426,7.47,208.41,208.37,7.76]
[1756884375621,7.47,208.43,208.36,1.62211692]
[1756884376529,7.47,208.43,208.4,1.62211692]
[1756884376933,7.47,208.45,208.42,1.62211692]
[1756884377121,12.81863592,208.48,208.44,1.62211692]
[1756884377320,7.47,208.48,208.44,1.62211692]
[1756884378232,7.47,208.48,208.44,9.38211692]
[1756884378532,7.47,208.49,208.44,9.38211692]
[1756884378728,7.47,208.49,208.44,1.62211692]
[1756884379033,5.34863592,208.48,208.41,1.62211692]
[1756884379228,7.47,208.47,208.41,1.62211692]
[1756884379734,7.47,208.45,208.33,7.76]
[1756884379934,7.47,208.45,208.38,1.62211692]
[1756884381431,7.47,208.45,208.4,1.62211692]
[1756884381636,5.34863592,208.5,208.44,9.38211692]
[1756884382032,12.81863592,208.51,208.44,9.38211692]
[1756884382432,12.81863592,208.51,208.44,1.62211692]
[1756884382831,1.62211692,208.5,208.44,1.62211692]
[1756884383435,7.47,208.49,208.44,1.62211692]
[1756884383633,1.62211692,208.5,208.44,1.62211692]
[1756884384430,7.47,208.49,208.44,1.62211692]
[1756884385225,1.62211692,208.5,208.44,1.62211692]
[1756884385432,7.47,208.49,208.44,1.62211692]
[1756884385735,7.47,208.49,208.4,7.76]
[1756884385931,7.47,208.49,208.43,1.62211692]
[1756884389635,7.47,208.51,208.45,1.62211692]
[1756884390738,7.47,208.51,208.43,1.62211692]
[1756884391537,7.47,208.49,208.43,1.62211692]
[1756884392136,7.47,208.49,208.4,7.76]
[1756884392137,7.47,208.49,208.41,1.62211692]
[1756884395740,7.47,208.49,208.29,4.0270693]
[1756884395741,7.47,208.45,208.37,1.62211692]
[1756884398242,1.62211692,208.42,208.35,1.62211692]
[1756884398443,7.47,208.41,208.34,1.62211692]
[1756884398642,1.62211692,208.4,208.33,9.38211692]
[1756884399340,7.47,208.39,208.33,1.62211692]
[1756884399540,7.47,208.39,208.29,7.76]
[1756884399541,7.47,208.39,208.29,10.29521005]
[1756884402036,5.34863592,208.41,208.3,7.18]
[1756884402237,12.98863592,208.42,208.33,7.18]
[1756884404247,5.34863592,208.43,208.36,7.18]
[1756884405653,5.34863592,208.43,208.39,7.18]
[1756884405944,12.98863592,208.46,208.39,7.18]
[1756884406341,5.34863592,208.45,208.35,9.71521005]
[1756884406646,7.64,208.44,208.35,9.71521005]
[1756884408042,7.64,208.44,208.36,2.53521005]
[1756884409449,7.64,208.44,208.37,7.18]
[1756884411247,7.64,208.44,208.36,2.53521005]
[1756884411551,12.98863592,208.43,208.33,9.71521005]
[1756884411750,7.64,208.43,208.33,9.71521005]
[1756884411950,7.64,208.43,208.34,7.18]
[1756884412445,7.64,208.43,208.37,7.18]
[1756884415252,5.34863592,208.46,208.37,7.18]
[1756884415444,5.34863592,208.46,208.39,2.53521005]
[1756884415648,5.34863592,208.46,208.4,7.18]
[1756884416048,7.64,208.47,208.4,7.18]
[1756884416649,12.98863592,208.47,208.4,7.18]
[1756884417549,7.64,208.47,208.4,9.71521005]
[1756884417856,12.98863592,208.47,208.4,9.71521005]
[1756884418156,12.98863592,208.47,208.4,7.18]
[1756884418546,7.64,208.47,208.4,7.18]
[1756884420358,5.34863592,208.5,208.36,7.18]
[1756884420561,7.64,208.49,208.42,2.53521005]
[1756884420759,5.34863592,208.48,208.38,2.53521005]
[1756884421056,12.98863592,208.47,208.38,2.53521005]
[1756884422259,12.98863592,208.47,208.39,7.18]
[1756884427451,7.64,208.47,208.39,7.18]
[1756884430863,7.64,208.47,208.39,9.71521005]
[1756884431659,7.64,208.47,208.34,2.53521005]
[1756884431660,5.34863592,208.5,208.43,7.81]
[1756884431862,12.67863592,208.51,208.45,2.53521005]
[1756884432061,7.33,208.51,208.35,4.0270693]
[1756884432358,12.67863592,208.49,208.4,7.81]
[1756884432556,5.34863592,208.48,208.4,7.81]
[1756884434060,7.33,208.47,208.4,7.81]
[1756884434261,7.33,208.46,208.36,10.34521005]
[1756884434561,7.33,208.45,208.36,10.34521005]
[1756884436568,7.33,208.44,208.36,10.34521005]
[1756884436865,7.33,208.44,208.36,7.81]
[1756884437064,12.67863592,208.44,208.36,7.81]
[1756884438970,12.67863592,208.44,208.36,10.34521005]
[1756884440869,7.33,208.43,208.36,10.34521005]
[1756884442579,5.34863592,208.45,208.37,7.81]
[1756884443175,12.67863592,208.46,208.37,7.81]
[1756884443978,7.33,208.44,208.37,7.81]
[1756884447688,12.67863592,208.44,208.37,7.81]
[1756884449286,12.67863592,208.44,208.36,2.53521005]
[1756884459500,12.67863592,208.44,208.38,1.62158128]
[1756884464905,12.67863592,208.44,208.37,7.93]
[1756884465105,7.47,208.43,208.39,1.62158128]
[1756884465299,5.34863592,208.44,208.39,1.62158128]
[1756884465703,7.47,208.43,208.39,1.62158128]
[1756884466099,5.34863592,208.44,208.39,1.62158128]
[1756884466302,7.47,208.43,208.39,1.62158128]
[1756884466805,5.34863592,208.44,208.41,1.62158128]
[1756884467102,12.81863592,208.47,208.44,7.93]
[1756884467404,7.47,208.47,208.46,1.62158128]
[1756884467610,7.47,208.47,208.36,4.0270693]
[1756884467810,7.47,208.47,208.46,1.62158128]
[1756884472406,7.47,208.52,208.46,1.62158128]
[1756884472610,7.47,208.52,208.5,1.62158128]
[1756884473109,5.34863592,208.53,208.5,1.62158128]
[1756884473309,7.47,208.53,208.5,1.62158128]
[1756884473509,7.47,208.53,208.45,7.93]
[1756884473710,5.34863592,208.53,208.46,1.62158128]
[1756884473912,12.81863592,208.52,208.46,1.62158128]
[1756884474308,7.47,208.52,208.46,1.62158128]
[1756884474807,7.47,208.52,208.42,7.93]
[1756884475010,7.47,208.52,208.47,1.62158128]
[1756884475310,5.34863592,208.53,208.47,1.62158128]
[1756884475709,7.47,208.52,208.49,1.62158128]
[1756884475909,7.47,208.52,208.48,1.62158128]
[1756884476112,5.34863592,208.53,208.48,1.62158128]
[1756884476914,7.47,208.52,208.48,1.62158128]
[1756884477207,5.34863592,208.53,208.48,1.62158128]
[1756884477413,7.47,208.52,208.48,1.62158128]
[1756884477817,5.34863592,208.53,208.48,1.62158128]
[1756884478204,7.47,208.52,208.48,1.62158128]
[1756884478405,5.34863592,208.54,208.48,1.62158128]
[1756884479317,7.47,208.53,208.48,1.62158128]
[1756884479507,5.34863592,208.54,208.48,1.62158128]
[1756884479712,12.81863592,208.54,208.48,1.62158128]
[1756884479910,7.47,208.53,208.5,1.62158128]
[1756884480115,7.47,208.54,208.45,7.93]
[1756884480316,1.62158128,208.53,208.46,1.62158128]
[1756884480519,7.47,208.52,208.46,1.62158128]
[1756884480719,7.47,208.52,208.35,4.0270693]
[1756884480720,5.34863592,208.54,208.48,1.62158128]
[1756884480922,12.81863592,208.53,208.48,1.62158128]
[1756884481418,7.47,208.52,208.48,1.62158128]
[1756884481614,7.47,208.53,208.48,1.62158128]
[1756884483421,5.34863592,208.54,208.48,1.62158128]
[1756884483625,7.47,208.53,208.48,1.62158128]
[1756884484325,5.34863592,208.54,208.48,1.62158128]
[1756884484524,7.47,208.53,208.48,1.62158128]
[1756884484723,5.34863592,208.54,208.48,1.62158128]
[1756884485928,12.81863592,208.54,208.48,1.62158128]
[1756884486817,7.47,208.54,208.48,1.62158128]
[1756884488625,5.34863592,208.55,208.52,9.55158128]
[1756884488828,7.47,208.56,208.52,9.55158128]
[1756884489126,5.34863592,208.58,208.52,9.55158128]
[1756884489322,7.47,208.57,208.52,9.55158128]
[1756884489723,5.34863592,208.58,208.52,9.55158128]
[1756884489921,12.81863592,208.58,208.52,9.55158128]
[1756884490627,7.47,208.58,208.54,9.55158128]
[1756884491619,7.7,208.59,208.54,9.55158128]
[1756884491830,5.34863592,208.6,208.54,9.55158128]
[1756884492027,7.7,208.57,208.48,7.43]
[1756884492332,7.7,208.57,208.51,1.62158128]
[1756884492727,5.34863592,208.59,208.53,1.62158128]
[1756884492927,7.7,208.58,208.53,1.62158128]
[1756884493228,5.34863592,208.59,208.53,1.62158128]
[1756884494026,5.34863592,208.59,208.51,7.43]
[1756884494226,7.7,208.58,208.52,1.62158128]
[1756884494530,7.7,208.58,208.51,9.05158128]
[1756884494732,9.32158128,208.58,208.51,9.05158128]
[1756884497027,1.62158128,208.56,208.48,7.43]
[1756884497227,7.7,208.55,208.48,9.05158128]
[1756884497432,1.62158128,208.54,208.46,1.62158128]
[1756884497735,7.7,208.53,208.46,1.62158128]
[1756884499234,7.7,208.53,208.48,1.62158128]
[1756884499532,1.62158128,208.56,208.49,7.43]
[1756884499835,7.7,208.58,208.52,1.62158128]
[1756884500434,7.7,208.58,208.54,1.62158128]
[1756884500636,7.7,208.58,208.54,9.05158128]
[1756884501827,7.7,208.58,208.55,7.43]
[1756884502237,7.7,208.58,208.56,1.62158128]
[1756884502533,5.34863592,208.6,208.56,9.05158128]
[1756884502534,7.7,208.6,208.56,9.05158128]
[1756884502743,5.34863592,208.62,208.57,7.43]
[1756884502945,7.7,208.61,208.57,7.43]
[1756884503134,7.7,208.62,208.56,1.62158128]
[1756884505630,7.7,208.62,208.58,1.62158128]
[1756884505834,7.7,208.63,208.58,1.62158128]
[1756884506836,5.34863592,208.64,208.6,1.62158128]
[1756884507034,13.04863592,208.64,208.6,1.62158128]
[1756884507239,5.34863592,208.66,208.6,1.62158128]
[1756884507741,7.7,208.65,208.6,1.62158128]
[1756884507941,5.34863592,208.66,208.6,1.62158128]
[1756884508143,7.7,208.65,208.6,1.62158128]
[1756884508341,5.34863592,208.66,208.6,1.62158128]
[1756884508536,7.7,208.66,208.62,1.62158128]
[1756884508737,7.7,208.66,208.62,9.05158128]
[1756884509339,7.7,208.67,208.6,1.62158128]
[1756884511234,7.7,208.67,208.62,1.62158128]
[1756884511638,6.9702172,208.68,208.62,1.62158128]
[1756884511944,7.7,208.67,208.62,1.62158128]
[1756884512140,5.34863592,208.68,208.62,1.62158128]
[1756884512343,7.7,208.69,208.62,1.62158128]
[1756884516651,7.7,208.69,208.59,7.43]
[1756884516844,7.7,208.67,208.61,1.62158128]
[1756884517446,7.7,208.67,208.47,4.0270693]
[1756884517447,1.62158128,208.66,208.58,1.62158128]
[1756884517651,7.7,208.65,208.58,1.62158128]
[1756884517951,9.32158128,208.65,208.58,1.62158128]
[1756884518848,7.7,208.65,208.58,1.62158128]
[1756884519653,9.32158128,208.65,208.56,7.43]
[1756884519855,9.32158128,208.65,208.57,1.62158128]
[1756884521460,7.7,208.65,208.55,9.95885443]
[1756884521661,7.91,208.67,208.55,9.95885443]
[1756884522258,5.34863592,208.67,208.55,9.95885443]
[1756884522557,7.87749035,208.68,208.55,9.95885443]
[1756884522957,7.91,208.67,208.55,9.95885443]
[1756884523258,7.87749035,208.68,208.55,9.95885443]
[1756884523656,7.91,208.67,208.55,9.95885443]
[1756884523858,5.34863592,208.67,208.55,9.95885443]
[1756884524255,7.91,208.66,208.55,9.95885443]
[1756884524461,5.34863592,208.67,208.55,9.95885443]
[1756884525063,7.91,208.66,208.55,9.95885443]
[1756884525362,5.34863592,208.67,208.55,9.95885443]
[1756884525562,7.91,208.66,208.55,9.95885443]
[1756884525765,5.34863592,208.67,208.55,9.95885443]
[1756884526164,7.91,208.66,208.55,9.95885443]
[1756884526363,5.34863592,208.67,208.55,9.95885443]
[1756884526763,7.91,208.66,208.55,9.95885443]
[1756884527156,5.34863592,208.67,208.55,9.95885443]
[1756884527357,7.91,208.66,208.55,9.95885443]
[1756884527960,7.91,208.66,208.56,7.73]
[1756884528163,7.91,208.66,208.59,7.73]
[1756884535871,5.34863592,208.69,208.59,7.73]
[1756884536174,7.91,208.7,208.62,7.73]
[1756884537170,5.34863592,208.71,208.68,7.73]
[1756884537370,7.91,208.75,208.67,2.52885443]
[1756884537566,7.91,208.75,208.67,10.25885443]
[1756884539674,5.34863592,208.76,208.67,10.25885443]
[1756884539879,7.91,208.75,208.67,10.25885443]
[1756884540471,5.34863592,208.76,208.67,10.25885443]
[1756884540770,7.91,208.75,208.67,10.25885443]
[1756884543583,7.91,208.75,208.67,7.73]
[1756884543883,7.91,208.75,208.67,10.25885443]
[1756884544483,7.91,208.75,208.68,7.73]
[1756884546283,7.91,208.75,208.65,2.52885443]
[1756884546284,13.25863592,208.75,208.65,2.52885443]
[1756884547977,13.25863592,208.75,208.64,7.73]
[1756884548183,13.25863592,208.75,208.65,2.52885443]
[1756884548680,13.25863592,208.75,208.66,7.73]
[1756884550386,7.91,208.73,208.66,7.73]
[1756884556778,0.03056283,208.72,208.66,7.73]
[1756884557288,0.03056283,208.72,208.67,2.52885443]
[1756884557484,0.03056283,208.72,208.68,7.85]
[1756884557690,0.03056283,208.72,208.67,2.52885443]
[1756884557884,0.03056283,208.72,208.68,7.85]
[1756884558487,0.03056283,208.72,208.67,2.52885443]
[1756884559790,0.03056283,208.72,208.68,7.85]
[1756884560688,0.03056283,208.72,208.67,2.52885443]
[1756884560883,0.03056283,208.72,208.68,7.85]
[1756884561088,0.03056283,208.72,208.67,2.52885443]
[1756884561695,0.03056283,208.72,208.68,7.85]
[1756884561988,0.03056283,208.72,208.67,2.52885443]
[1756884562389,0.03056283,208.72,208.68,7.85]
[1756884562791,0.03056283,208.72,208.67,2.52885443]
[1756884563187,0.03056283,208.72,208.68,7.85]
[1756884563393,0.03056283,208.72,208.67,2.52885443]
[1756884563590,0.03056283,208.72,208.68,7.85]
[1756884564087,0.03056283,208.72,208.67,2.52885443]
[1756884564683,0.03056283,208.72,208.68,7.85]
[1756884564883,7.62,208.71,208.67,10.37885443]
[1756884565092,7.62,208.71,208.68,7.85]
[1756884565594,0.03056283,208.72,208.67,2.52885443]
[1756884565795,0.03056283,208.72,208.68,7.85]
[1756884565993,7.65056283,208.72,208.68,7.85]
[1756884566293,7.65056283,208.72,208.67,2.52885443]
[1756884566794,7.65056283,208.72,208.68,7.85]
[1756884566989,7.62,208.71,208.68,7.85]
[1756884567592,10.14885443,208.71,208.59,7.85]
[1756884567896,12.96863592,208.69,208.59,7.85]
[1756884568096,2.52885443,208.68,208.59,7.85]
[1756884568291,7.62,208.67,208.59,7.85]
[1756884571500,2.52885443,208.71,208.6,7.85]
[1756884571501,12.96863592,208.71,208.6,7.85]
[1756884571798,7.62,208.71,208.63,7.85]
[1756884572499,12.96863592,208.71,208.63,7.85]
[1756884576605,15.49749035,208.71,208.59,7.85]
[1756884576797,7.62,208.69,208.59,7.85]
[1756884578297,12.96863592,208.69,208.59,7.85]
[1756884579704,12.96863592,208.67,208.59,7.85]
[1756884581006,7.62,208.65,208.59,7.85]
[1756884583510,9.23849724,208.65,208.59,7.85]
[1756884587213,9.23849724,208.65,208.57,1.61849724]
[1756884587415,9.23849724,208.65,208.57,9.29849724]
[1756884590115,7.62,208.65,208.57,9.29849724]
[1756884590409,9.23849724,208.65,208.57,9.29849724]
[1756884592310,7.62,208.65,208.59,1.61849724]
[1756884592515,6.96713316,208.67,208.6,7.68]
[1756884592712,1.61849724,208.67,208.6,7.68]
[1756884592907,7.41,208.68,208.61,1.61849724]
[1756884593112,7.41,208.69,208.63,9.29849724]
[1756884596717,7.41,208.69,208.65,1.61849724]
[1756884596917,7.41,208.69,208.66,7.68]
[1756884597213,5.34863592,208.71,208.65,9.29849724]
[1756884597413,12.75863592,208.72,208.65,9.29849724]
[1756884597815,7.41,208.72,208.65,9.29849724]
[1756884599318,7.41,208.7,208.63,1.61849724]
[1756884600018,7.41,208.7,208.63,9.29849724]
[1756884600713,7.41,208.7,208.65,1.61849724]
[1756884601110,7.41,208.7,208.66,7.68]
[1756884601818,7.41,208.7,208.65,1.61849724]
[1756884602016,7.41,208.7,208.66,7.68]
[1756884602318,12.75863592,208.73,208.67,1.61849724]
[1756884602518,7.41,208.73,208.67,9.29849724]
[1756884603318,5.34863592,208.75,208.7,7.68]
[1756884603520,5.34863592,208.77,208.74,7.68]
[1756884603716,0.03127855,208.75,208.74,7.68]
[1756884604225,7.41,208.78,208.74,7.68]
[1756884605617,7.41,208.79,208.73,1.61849724]
[1756884607924,14.37713316,208.79,208.73,1.61849724]
[1756884608817,7.41,208.79,208.73,1.61849724]
[1756884609022,7.41,208.79,208.73,9.29849724]
[1756884610029,7.41,208.79,208.76,7.68]
[1756884610521,7.41,208.79,208.73,1.61849724]
[1756884610725,7.41,208.77,208.63,7.68]
[1756884610922,7.41,208.77,208.7,9.29849724]
[1756884611115,7.41,208.77,208.73,7.68]
[1756884611316,7.41,208.77,208.72,1.61849724]
[1756884611514,7.41,208.77,208.73,7.75]
[1756884611717,7.41,208.77,208.72,1.61849724]
[1756884611919,7.41,208.77,208.73,1.61849724]
[1756884612119,7.41,208.77,208.73,9.36849724]
[1756884612628,7.41,208.77,208.74,7.75]
[1756884612828,9.14849724,208.8,208.73,9.36849724]
[1756884613025,7.53,208.8,208.73,9.36849724]
[1756884613228,7.53,208.8,208.76,7.75]
[1756884613522,7.53,208.8,208.75,1.61849724]
[1756884613727,6.96713316,208.81,208.75,1.61849724]
[1756884614527,7.53,208.8,208.73,1.61849724]
[1756884614940,7.53,208.78,208.71,9.36849724]
[1756884615427,7.53,208.78,208.74,7.75]
[1756884615826,7.53,208.79,208.72,1.61849724]
[1756884616029,7.53,208.79,208.73,7.75]
[1756884617029,7.53,208.79,208.75,7.75]
[1756884617229,7.53,208.79,208.74,1.61849724]
[1756884617429,7.53,208.79,208.75,7.75]
[1756884618430,7.53,208.79,208.74,1.61849724]
[1756884618629,7.53,208.79,208.75,7.75]